bitfinex/quotes_ETHUSD_20230701
["timestamp","ask_amount","ask_price","bid_price","bid_amount"]
[1688209200646,5.61981227,1924.4,1924.0,14.18667301]
[1688209200853,0.42330227,1924.4,1924.0,14.18667301]
[1688209201180,10.39313,1924.4,1924.1,2.7766673]
[1688209201350,10.39313,1924.4,1924.1,6.55513]
[1688209201551,10.39313,1924.4,1924.1,10.39426]
[1688209203545,10.39313,1924.4,1924.1,5.19713]
[1688209203753,12.99134,1924.4,1924.1,5.19713]
[1688209204086,12.99134,1924.4,1924.0,13.25020301]
[1688209204236,12.99134,1924.4,1924.1,1.3250203]
[1688209205139,10.39313,1924.4,1924.1,6.5222403]
[1688209205646,10.39313,1924.4,1924.1,11.7194703]
[1688209206055,1.50217087,1924.5,1924.1,11.7194703]
[1688209206270,0.46199387,1924.5,1924.1,15.6700803]
[1688209206447,0.46199387,1924.5,1924.2,2.91300803]
[1688209206781,0.46199387,1924.5,1924.3,10.39338]
[1688209206986,0.46199387,1924.5,1924.3,12.99172]
[1688209207189,0.46199387,1924.5,1924.3,10.39338]
[1688209207679,5.65817387,1924.5,1924.2,8.10984803]
[1688209207843,10.85435387,1924.5,1924.3,0.8109848]
[1688209208377,5.65817387,1924.5,1924.3,0.8109848]
[1688209208948,5.65817387,1924.5,1924.3,6.0076448]
[1688209210981,5.65817387,1924.5,1924.3,11.2043348]
[1688209211282,0.46199387,1924.5,1924.3,11.2043348]
[1688209211489,0.46199387,1924.5,1924.4,6.31685348]
[1688209211644,0.46199387,1924.5,1924.4,11.51327348]
[1688209216749,0.46199387,1924.5,1924.4,14.11148348]
[1688209222379,0.0495448,1924.5,1924.4,18.14900532]
[1688209227912,0.0495448,1924.5,1924.4,23.34542532]
[1688209228695,0.0495448,1924.5,1924.4,18.14900532]
[1688209236882,0.0495448,1924.5,1924.4,23.62800532]
[1688209237082,0.0495448,1924.5,1924.4,24.10800532]
[1688209246258,0.0495448,1924.5,1924.4,24.52870291]
[1688209249012,0.0495448,1924.5,1924.4,23.17870291]
[1688209261757,0.0495448,1924.5,1924.4,16.79900532]
[1688209267970,0.0495448,1924.5,1924.4,22.27800532]
[1688209268205,0.0495448,1924.5,1924.4,27.95442532]
[1688209275890,0.0495448,1924.5,1924.4,30.07416503]
[1688209276123,0.0495448,1924.5,1924.4,33.07416503]
[1688209278090,11.83617,1925.3,1924.8,9.105]
[1688209278091,0.1,1925.3,1924.8,9.105]
[1688209278280,0.1,1925.3,1925.2,11.50752184]
[1688209278484,0.1,1925.3,1925.2,14.50752184]
[1688209278680,0.1,1925.3,1925.2,37.46531402]
[1688209278879,0.1,1925.3,1925.2,37.73305373]
[1688209279422,0.1,1925.4,1925.3,0.5]
[1688209279719,0.1,1925.4,1925.3,26.75123155]
[1688209286600,0.1,1925.5,1925.3,26.75123155]
[1688209286827,0.1,1925.5,1925.4,25.655945]
[1688209287030,0.1,1925.5,1925.4,28.655945]
[1688209291410,0.1,1925.5,1925.4,27.305945]
[1688209291633,0.1,1925.5,1925.4,21.346945]
[1688209291823,0.1,1925.5,1925.4,5.19372]
[1688209292036,0.1,1925.5,1925.4,10.38744]
[1688209292210,0.1,1925.5,1925.4,15.67182184]
[1688209292412,0.1,1925.5,1925.4,12.9843]
[1688209293033,0.1,1925.5,1925.4,15.67182184]
[1688209293236,0.1,1925.5,1925.4,17.28900402]
[1688209294416,0.1,1925.5,1925.4,15.67182184]
[1688209296916,0.1,1925.5,1925.4,21.15082184]
[1688209297116,0.1,1925.5,1925.4,21.63082184]
[1688209299428,0.1,1925.5,1925.4,11.91426155]
[1688209299826,0.1,1925.5,1925.4,24.89856155]
[1688209300024,0.1,1925.5,1925.4,29.59147771]
[1688209301038,0.1,1925.5,1925.4,29.323738]
[1688209305954,0.1,1925.5,1925.4,29.73080135]
[1688209330590,0.1,1925.5,1925.4,31.99854106]
[1688209342335,0.1,1925.5,1925.4,13.48202519]
[1688209342643,0.1,1925.5,1925.4,5.19372]
[1688209343202,0.1,1925.5,1925.4,13.86024184]
[1688209343470,0.1,1925.5,1925.4,21.65082184]
[1688209343754,0.1,1925.5,1925.4,26.84454184]
[1688209343923,0.1,1925.5,1925.4,33.46868502]
[1688209347613,0.1,1925.5,1925.4,22.31596502]
[1688209348719,0.1,1925.5,1925.4,27.79496502]
[1688209349024,0.1,1925.5,1925.4,30.06270473]
[1688209349241,0.1,1925.5,1925.4,30.54270473]
[1688209351685,0.1,1925.5,1925.4,30.27496502]
[1688209352651,0.1,1925.5,1925.4,26.79496502]
[1688209352852,0.1,1925.5,1925.4,25.27496502]
[1688209353715,1.3666673,1926.0,1925.9,9.979]
[1688209353917,1.3666673,1926.0,1925.9,14.14442184]
[1688209354195,1.3666673,1926.0,1925.9,30.62376224]
[1688209354371,0.1,1926.3,1926.2,0.5]
[1688209354565,0.1,1926.3,1926.2,24.72120184]
[1688209354881,0.1,1926.3,1926.2,27.98024073]
[1688209355891,0.1,1926.3,1926.2,27.71250102]
[1688209357194,0.05,1926.3,1926.2,27.71250102]
[1688209357910,0.05,1926.3,1926.2,24.61672102]
[1688209358276,0.05,1926.3,1926.2,25.11672102]
[1688209358468,0.05,1926.3,1926.2,24.61672102]
[1688209359111,0.05,1926.3,1926.2,25.11672102]
[1688209359465,0.05,1926.3,1926.2,24.61672102]
[1688209360204,0.05,1926.3,1926.2,25.11672102]
[1688209362570,0.05,1926.3,1926.2,25.53322917]
[1688209364598,0.05,1926.3,1926.2,3.10402999]
[1688209364762,13.02822,1926.3,1926.2,2.68752184]
[1688209365108,10.43258,1926.3,1926.2,2.68752184]
[1688209366074,0.05,1926.3,1926.2,2.68752184]
[1688209366617,1.397,1926.3,1926.2,2.68752184]
[1688209367218,1.397,1926.3,1926.2,7.87908184]
[1688209370673,6.58829,1926.3,1926.2,7.87908184]
[1688209372418,0.05,1926.3,1926.2,7.87908184]
[1688209372925,1.39,1926.3,1926.2,7.87908184]
[1688209373789,6.58129,1926.3,1926.2,7.87908184]
[1688209374927,1.39,1926.3,1926.2,7.87908184]
[1688209376399,0.05,1926.3,1926.2,7.87908184]
[1688209376898,1.394,1926.3,1926.2,7.87908184]
[1688209377528,0.05,1926.3,1926.2,13.07064184]
[1688209378809,0.05,1926.3,1926.2,12.94144284]
[1688209379120,0.05,1926.3,1926.2,7.74988284]
[1688209382098,0.05,1926.3,1926.2,12.94144284]
[1688209383430,0.05,1926.3,1926.2,7.74988284]
[1688209383624,1.402,1926.3,1926.2,7.74988284]
[1688209385008,1.402,1926.3,1926.2,2.55832284]
[1688209385525,1.402,1926.3,1926.2,7.74988284]
[1688209386529,0.05,1926.3,1926.2,7.74988284]
[1688209387230,0.05,1926.3,1926.2,12.94144284]
[1688209388931,0.05,1926.3,1926.2,7.74988284]
[1688209389132,5.24129,1926.3,1926.2,2.55832284]
[1688209389524,5.24129,1926.3,1926.2,7.74988284]
[1688209391147,5.24129,1926.3,1926.2,2.55832284]
[1688209392953,5.24129,1926.3,1926.2,7.74988284]
[1688209393914,5.24129,1926.3,1926.2,2.55832284]
[1688209394220,0.05,1926.3,1926.2,2.55832284]
[1688209394420,5.24129,1926.3,1926.2,2.55832284]
[1688209396644,10.43258,1926.3,1926.2,2.55832284]
[1688209399357,5.24129,1926.3,1926.2,2.55832284]
[1688209400615,5.24129,1926.3,1926.0,0.5]
[1688209400819,5.24129,1926.3,1926.1,5.19176]
[1688209401444,10.43258,1926.3,1926.1,5.19176]
[1688209401741,5.24129,1926.3,1926.1,5.19176]
[1688209402821,0.05,1926.3,1926.1,10.38359]
[1688209403324,0.05,1926.3,1926.1,12.9795]
[1688209404061,5.2414,1926.3,1926.1,10.38359]
[1688209404224,10.4328,1926.3,1926.1,5.19176]
[1688209404425,5.2414,1926.3,1926.1,5.19176]
[1688209404820,10.4328,1926.3,1926.0,8.37952184]
[1688209405021,10.4328,1926.3,1926.0,2.68752184]
[1688209405320,10.4328,1926.3,1925.9,3.41756197]
[1688209405321,14.30813,1926.3,1925.9,3.41756197]
[1688209405558,14.30813,1926.3,1925.9,6.10508381]
[1688209405856,14.30813,1926.3,1925.9,11.29744381]
[1688209406058,13.02844,1926.3,1925.9,16.48981381]
[1688209406843,13.02844,1926.3,1925.9,11.29744381]
[1688209407048,13.02844,1926.3,1925.9,6.10508381]
[1688209408323,13.02844,1926.3,1925.9,5.60983197]
[1688209408526,5.19183,1926.1,1925.9,10.80220197]
[1688209408864,5.19183,1926.1,1925.9,5.60983197]
[1688209410550,6.54175,1926.2,1925.9,10.80220197]
[1688209410750,12.652239,1926.2,1925.9,10.80220197]
[1688209411172,12.652239,1926.2,1925.9,5.60983197]
[1688209412256,15.248019,1926.2,1925.9,5.60983197]
[1688209412454,12.652239,1926.2,1925.9,5.60983197]
[1688209413147,15.248019,1926.2,1925.9,5.60983197]
[1688209413355,1.5248019,1926.1,1925.9,5.60983197]
[1688209413684,1.5248019,1926.1,1925.7,3.0]
[1688209413685,10.3842,1926.0,1925.7,3.0]
[1688209413849,10.3842,1926.0,1925.7,2.68752184]
[1688209414380,5.1921,1926.0,1925.7,7.88040184]
[1688209414777,10.3842,1926.0,1925.7,2.68752184]
[1688209415648,10.3842,1926.0,1925.7,3.09383683]
[1688209415849,10.3842,1926.0,1925.7,8.28670683]
[1688209416406,10.3842,1926.0,1925.7,3.09383683]
[1688209417286,15.32973706,1926.0,1925.6,10.38603]
[1688209417987,17.11123706,1926.0,1925.6,10.38603]
[1688209419385,17.11123706,1926.0,1925.6,5.19296]
[1688209419596,14.51518706,1926.0,1925.6,12.98273]
[1688209419897,13.5127,1926.0,1925.6,10.38614]
[1688209420104,16.10875,1926.0,1925.6,5.19296]
[1688209420590,16.10875,1926.0,1925.6,10.80983345]
[1688209420957,13.5127,1926.0,1925.6,13.40642345]
[1688209423462,8.3206,1926.0,1925.6,16.09394529]
[1688209423790,8.3206,1926.0,1925.7,4.29691637]
[1688209423791,5.1921,1926.0,1925.7,4.29691637]
[1688209423990,5.1921,1926.0,1925.8,5.19264]
[1688209424493,5.1921,1926.0,1925.8,10.38528]
[1688209428789,5.1921,1926.0,1925.8,5.19264]
[1688209431198,10.3842,1926.0,1925.8,5.19264]
[1688209431387,10.3842,1926.0,1925.7,7.88036184]
[1688209433615,10.3842,1926.0,1925.7,13.07327184]
[1688209433926,10.3842,1926.0,1925.7,7.88036184]
[1688209434128,5.1921,1926.0,1925.7,7.88036184]
[1688209434333,12.98025,1926.0,1925.7,2.68752184]
[1688209435217,14.897197,1926.0,1925.7,2.68752184]
[1688209438314,1.347,1925.9,1925.3,5.19383]
[1688209438543,12.98215,1925.8,1925.4,2.68752184]
[1688209438747,16.77945,1925.8,1925.4,2.68752184]
[1688209439442,18.30853096,1925.8,1925.4,2.68752184]
[1688209440240,18.30853096,1925.8,1925.2,6.70415]
[1688209440452,18.30853096,1925.8,1925.2,9.39167184]
[1688209440808,18.30853096,1925.8,1925.2,14.58569184]
[1688209441009,19.66053096,1925.8,1925.2,14.58569184]
[1688209441319,19.66053096,1925.8,1925.2,15.00116362]
[1688209441511,19.66053096,1925.8,1925.2,16.62317051]
[1688209443047,16.77945,1925.8,1925.3,2.68752184]
[1688209443246,16.77945,1925.8,1925.4,5.19359]
[1688209443423,16.77945,1925.8,1925.4,7.88111184]
[1688209444209,16.77945,1925.8,1925.4,13.07483184]
[1688209445924,1.36551602,1925.9,1925.5,2.68752184]
[1688209445925,10.38493,1925.9,1925.5,2.68752184]
[1688209446128,5.19266,1925.8,1925.6,0.26875218]
[1688209446451,5.19266,1925.8,1925.7,2.68752184]
[1688209446452,10.38532,1925.8,1925.7,2.68752184]
[1688209447249,10.38532,1925.8,1925.4,8.19448]
[1688209447250,12.98164,1925.8,1925.4,6.84748]
[1688209447418,12.98164,1925.8,1925.5,2.68752184]
[1688209449419,10.38532,1925.8,1925.5,7.88094184]
[1688209449618,5.19221,1926.0,1925.5,17.14395402]
[1688209449975,10.38453,1926.0,1925.5,17.14395402]
[1688209450872,12.98058,1926.0,1925.5,17.14395402]
[1688209451818,7.27965602,1926.1,1925.5,17.14395402]
[1688209452176,12.4551,1926.1,1925.7,12.98197]
[1688209452470,12.4551,1926.1,1925.8,7.88001184]
[1688209452828,15.05101,1926.1,1925.8,7.88001184]
[1688209455256,15.05101,1926.1,1925.6,1.5186]
[1688209455457,15.05101,1926.1,1925.7,2.68752184]
[1688209455642,17.120308,1926.1,1925.7,2.68752184]
[1688209456260,17.120308,1926.1,1925.6,1.5186]
[1688209456421,17.120308,1926.1,1925.6,4.20612184]
[1688209457529,17.120308,1926.1,1925.4,6.7883]
[1688209457530,18.470308,1926.1,1925.4,6.7883]
[1688209457734,4.48042996,1926.0,1925.4,2.68752184]
[1688209457953,12.98147,1925.9,1925.4,2.68752184]
[1688209459071,14.34998602,1925.9,1925.4,2.68752184]
[1688209459231,14.34998602,1925.9,1925.3,5.19397]
[1688209459593,12.98262,1925.7,1925.3,5.19397]
[1688209460672,12.98262,1925.7,1925.2,5.60737382]
[1688209460873,12.98262,1925.7,1925.3,5.1939]
[1688209462827,12.98262,1925.7,1925.2,13.48904566]
[1688209463042,12.98262,1925.7,1925.2,5.19426]
[1688209463248,1.344,1925.5,1925.2,5.19426]
[1688209463443,2.2574994,1925.6,1924.9,0.40906083]
[1688209463674,2.2574994,1925.6,1925.0,0.90264407]
[1688209463675,12.9843,1925.4,1925.0,0.90264407]
[1688209463885,12.9843,1925.4,1924.8,12.27852342]
[1688209464088,14.6075,1925.4,1924.9,6.09767997]
[1688209464287,14.6075,1925.4,1924.9,5.19503]
[1688209465280,14.6075,1925.4,1924.8,15.37720909]
[1688209465476,16.533244,1925.4,1924.9,6.09771324]
[1688209465792,16.533244,1925.4,1924.9,5.19506]
[1688209465949,16.533244,1925.4,1924.9,10.39013]
[1688209466145,14.910044,1925.4,1924.9,5.19506]
[1688209466352,14.910044,1925.4,1924.9,5.19503]
[1688209466582,14.910044,1925.4,1924.8,4.44650567]
[1688209467083,14.910044,1925.4,1924.8,13.48938567]
[1688209467287,16.523644,1925.4,1924.8,13.48938567]
[1688209467482,1.52028396,1925.3,1924.8,10.80186383]
[1688209467672,10.3888,1925.2,1924.8,10.80186383]
[1688209467877,10.3888,1925.2,1924.8,13.39953383]
[1688209468047,12.98593,1925.2,1924.8,5.60652383]
[1688209468453,15.24773,1925.2,1924.8,5.60652383]
[1688209468754,17.173474,1925.2,1924.8,5.60652383]
[1688209470086,17.173474,1925.2,1924.8,5.19534]
[1688209471962,17.173474,1925.2,1924.8,10.39068]
[1688209472157,15.24773,1925.2,1924.8,10.39068]
[1688209474289,15.24773,1925.2,1924.7,0.4117269]
[1688209474494,16.94553,1925.2,1924.7,0.4117269]
[1688209474704,16.94553,1925.2,1924.6,8.20205842]
[1688209474859,16.94553,1925.2,1924.6,5.69390026]
[1688209475282,19.0363396,1925.2,1924.6,10.80757911]
[1688209475595,19.0363396,1925.2,1924.6,9.45370069]
[1688209475801,19.0363396,1925.2,1924.6,14.64941069]
[1688209476157,19.0363396,1925.2,1924.6,19.84529069]
[1688209476967,19.0363396,1925.2,1924.6,22.44323069]
[1688209477163,19.0363396,1925.2,1924.6,22.86286102]
[1688209477361,19.0363396,1925.2,1924.7,1.341]
[1688209477696,19.0363396,1925.2,1924.8,10.39049]
[1688209480686,9.154,1925.2,1924.8,12.98816]
[1688209480861,5.21056602,1925.3,1925.0,5.1948]
[1688209481061,10.40470602,1925.3,1925.0,5.1948]
[1688209482213,0.01651602,1925.3,1925.0,10.3896]
[1688209482569,5.21064602,1925.3,1925.0,10.3896]
[1688209482763,10.40477602,1925.3,1925.0,5.1948]
[1688209483977,13.00176602,1925.3,1925.0,5.1948]
[1688209484365,13.00176602,1925.3,1924.9,7.88248184]
[1688209484572,13.00176602,1925.3,1924.9,13.07736184]
[1688209486713,13.00176602,1925.3,1924.9,5.19488]
[1688209495223,14.68669262,1925.3,1924.9,5.19488]
[1688209495523,14.68669262,1925.3,1924.8,11.9221]
[1688209495723,14.68669262,1925.3,1924.8,14.60962184]
[1688209497511,14.68669262,1925.3,1924.8,1.5317]
[1688209498219,14.68669262,1925.3,1924.7,8.37992]
[1688209498427,1.6955,1925.2,1924.7,11.34320184]
[1688209498723,12.98667,1925.1,1924.7,19.13073394]
[1688209498924,12.98667,1925.1,1924.7,14.70631184]
[1688209499428,12.98667,1925.1,1924.7,13.07871184]
[1688209500431,12.98667,1925.1,1924.7,15.07871184]
[1688209501901,12.98667,1925.1,1924.7,13.07871184]
[1688209502099,12.98667,1925.1,1924.7,15.07871184]
[1688209504420,15.27747,1925.1,1924.7,13.07871184]
[1688209504622,16.974767,1925.1,1924.6,7.21544033]
[1688209504838,16.974767,1925.1,1924.6,15.09884217]
[1688209513148,16.974767,1925.1,1924.6,5.61524033]
[1688209514746,16.974767,1925.1,1924.6,10.81112033]
[1688209514958,14.377437,1925.1,1924.6,13.40906033]
[1688209515112,1.4377437,1925.0,1924.6,13.40906033]
[1688209515310,6.6325637,1925.0,1924.6,13.40906033]
[1688209515543,14.4247837,1925.0,1924.6,5.61524033]
[1688209515748,11.8273837,1925.0,1924.6,10.81112033]
[1688209516055,13.5670837,1925.0,1924.6,10.81112033]
[1688209516232,13.5670837,1925.0,1924.6,13.40906033]
[1688209516423,14.4247837,1925.0,1924.6,5.61524033]
[1688209516620,6.63770837,1924.9,1924.6,5.61524033]
[1688209517248,6.63770837,1924.9,1924.6,5.19561]
[1688209518226,11.83293837,1924.9,1924.6,5.19561]
[1688209518473,11.83293837,1924.9,1924.5,13.91402]
[1688209518757,11.83293837,1924.9,1924.6,0.90283799]
[1688209519135,11.83293837,1924.9,1924.6,6.09867799]
[1688209519447,11.83293837,1924.9,1924.6,5.19584]
[1688209524165,6.63770837,1924.9,1924.6,10.39172]
[1688209524467,10.3903,1924.9,1924.6,10.39172]
[1688209524672,10.3903,1924.9,1924.6,5.19584]
[1688209525967,12.98783,1924.9,1924.6,5.19584]
[1688209526272,10.3903,1924.9,1924.6,5.19584]
[1688209526797,12.98783,1924.9,1924.6,5.19579]
[1688209526927,12.93783,1924.9,1924.6,5.19579]
[1688209527130,12.93783,1924.9,1924.5,11.83112024]
[1688209527465,12.93783,1924.9,1924.5,13.39080444]
[1688209527666,10.3403,1924.9,1924.5,18.58695444]
[1688209527865,12.93783,1924.9,1924.5,13.39080444]
[1688209528033,10.3403,1924.9,1924.5,18.58695444]
[1688209529042,12.93783,1924.9,1924.5,8.19480444]
[1688209529361,12.93783,1924.9,1924.6,0.90285636]
[1688209529538,14.65203,1924.9,1924.5,8.19480444]
[1688209529747,14.65203,1924.9,1924.5,13.39089444]
[1688209529938,12.0545,1924.9,1924.5,18.58704444]
[1688209530569,14.65203,1924.9,1924.5,13.39089444]
[1688209531264,14.65203,1924.9,1924.5,8.19480444]
[1688209532052,14.65203,1924.9,1924.5,13.39089444]
[1688209533078,14.65203,1924.9,1924.5,8.19480444]
[1688209534682,14.65203,1924.9,1924.5,13.39094444]
[1688209535754,14.65203,1924.9,1924.5,3.9851826]
[1688209536244,12.93783,1924.9,1924.5,2.4254984]
[1688209536845,14.59223,1924.9,1924.5,2.4254984]
[1688209537143,14.59223,1924.9,1924.4,0.12720833]
[1688209537379,1.352,1924.8,1924.1,0.54034342]
[1688209537651,1.352,1924.8,1924.1,2.0]
[1688209537652,2.2657,1924.8,1924.1,2.0]
[1688209537858,12.98977,1924.6,1924.1,7.19722]
[1688209538094,14.548534,1924.6,1924.1,12.39445]
[1688209539326,14.548534,1924.6,1924.1,12.93883403]
[1688209539623,11.96710002,1924.6,1924.1,15.53744403]
[1688209540992,14.56504002,1924.6,1924.1,12.93883403]
[1688209541597,14.56504002,1924.6,1924.1,15.53744403]
[1688209541829,14.56504002,1924.6,1924.1,10.93883403]
[1688209542037,1.456504,1924.5,1924.1,0.41200555]
[1688209542328,13.00766602,1924.4,1924.0,5.19727]
[1688209543880,13.00766602,1924.4,1924.0,10.39477]
[1688209544324,13.00766602,1924.4,1924.0,5.19727]
[1688209544485,13.00766602,1924.4,1923.9,10.94279276]
[1688209544688,14.35566602,1924.4,1923.9,0.54755276]
[1688209544894,14.35566602,1924.4,1923.9,0.41563756]
[1688209545089,14.35566602,1924.4,1923.8,6.8641]
[1688209545310,1.4355666,1924.3,1923.8,1.6662]
[1688209545511,12.99274,1924.2,1923.8,1.6662]
[1688209545710,15.09184,1924.2,1923.8,1.6662]
[1688209545927,15.09184,1924.2,1923.8,0.41531001]
[1688209546221,15.09184,1924.2,1923.8,5.19803]
[1688209547022,16.91645066,1924.2,1923.8,5.19803]
[1688209547224,16.91645066,1924.2,1923.7,2.07955394]
[1688209547522,15.66191066,1924.2,1923.7,15.07530394]
[1688209547686,5.26771066,1924.2,1923.7,15.07530394]
[1688209547885,5.26771066,1924.2,1923.7,13.40910394]
[1688209547886,8.64006,1924.2,1923.7,13.40910394]
[1688209548227,0.01651602,1924.1,1923.6,5.19838]
[1688209548518,10.39528,1924.0,1923.6,12.99625]
[1688209548718,5.19764,1924.0,1923.6,12.99625]
[1688209548897,10.41132602,1924.1,1923.6,12.99625]
[1688209550008,10.41132602,1924.1,1923.6,13.40784754]
[1688209551311,10.41132602,1924.1,1923.6,15.42779602]
[1688209558134,5.1967,1924.3,1923.8,1.352]
[1688209558426,12.68183,1924.3,1923.9,12.9941]
[1688209558601,7.485,1924.3,1923.9,12.9941]
[1688209559130,15.28003,1924.3,1923.9,12.9941]
[1688209559434,16.808033,1924.3,1923.9,12.9941]
[1688209559637,16.808033,1924.3,1923.9,10.39528]
[1688209560210,18.158033,1924.3,1923.8,5.19793]
[1688209560738,19.870433,1924.3,1923.8,5.19793]
[1688209560912,26.68695484,1924.3,1923.4,7.01597]
[1688209561248,12.99382,1924.0,1923.5,11.98717]
[1688209561450,14.33382,1924.0,1923.5,11.98717]
[1688209562024,5.19806,1923.8,1923.5,14.58659]
[1688209562245,9.16866602,1923.9,1923.5,12.99709]
[1688209563411,14.36651602,1923.9,1923.5,12.99709]
[1688209567338,3.97081602,1923.9,1923.5,12.99709]
[1688209567648,9.16862602,1923.9,1923.5,12.99709]
[1688209567843,2.2419,1923.9,1923.5,14.7157]
[1688209568042,9.07375,1924.2,1923.5,18.74422184]
[1688209568249,5.19731,1924.1,1923.5,17.40322184]
[1688209568456,5.19731,1924.1,1923.6,1.74032218]
[1688209568637,5.19731,1924.1,1923.7,10.39636]
[1688209568638,5.19723,1924.1,1923.7,10.39636]
[1688209568838,10.39446,1924.1,1923.7,10.39636]
[1688209569152,5.19723,1924.1,1923.7,10.39636]
[1688209569468,5.19723,1924.1,1923.7,12.99551]
[1688209570041,3.89311602,1924.2,1923.7,14.62187322]
[1688209570357,0.01651602,1924.2,1923.7,18.66139506]
[1688209576275,0.01651602,1924.2,1923.8,1.352]
[1688209576446,1.6137,1924.3,1923.9,12.9443]
[1688209576957,5.19653,1924.4,1923.9,12.9443]
[1688209577154,6.81023,1924.4,1923.9,12.9443]
[1688209577339,10.39312,1924.4,1923.9,14.53917]
[1688209577738,5.19653,1924.4,1923.9,14.53917]
[1688209577977,10.39312,1924.4,1923.9,14.53917]
[1688209578279,3.7106,1924.5,1923.9,18.57869184]
[1688209578468,3.7106,1924.5,1924.1,12.99275]
[1688209579180,8.90677,1924.5,1924.1,12.99275]
[1688209579679,3.7106,1924.5,1924.1,12.99275]
[1688209581346,8.90678,1924.5,1924.1,12.99275]
[1688209582685,3.7106,1924.5,1924.1,12.99275]
[1688209582976,8.90678,1924.5,1924.1,12.99275]
[1688209583985,14.10296,1924.5,1924.1,12.99275]
[1688209584150,14.10296,1924.5,1924.1,5.1971]
[1688209584353,16.70103,1924.5,1924.1,5.1971]
[1688209585367,14.10296,1924.5,1924.1,10.39433]
[1688209586099,8.90678,1924.5,1924.1,10.39433]
[1688209586779,14.10293,1924.5,1924.1,17.46136576]
[1688209587294,8.90675,1924.5,1924.1,17.46136576]
[1688209587456,8.90683,1924.5,1924.1,17.46136576]
[1688209588290,14.10306,1924.5,1924.1,17.46136576]
[1688209588497,7.29313,1924.5,1924.1,17.46136576]
[1688209589202,12.48936,1924.5,1924.1,17.46136576]
[1688209589716,15.08743,1924.5,1924.1,9.66552576]
[1688209590668,15.08743,1924.5,1924.1,4.46842576]
[1688209591170,15.08743,1924.5,1924.1,9.66561576]
[1688209591799,15.08743,1924.5,1924.1,14.86284576]
[1688209591997,15.08743,1924.5,1924.1,17.46145576]
[1688209592305,15.08743,1924.5,1924.1,15.68055184]
[1688209593297,12.99053,1924.5,1924.1,15.68055184]
[1688209594770,10.39246,1924.5,1924.1,15.68055184]
[1688209595887,1.7632,1924.6,1924.2,2.68752184]
[1688209596223,12.15513,1924.6,1924.3,10.39328]
[1688209596622,5.19588,1924.6,1924.3,13.08080184]
[1688209596920,10.39193,1924.6,1924.3,13.08080184]
[1688209598122,12.98987,1924.6,1924.1,2.0]
[1688209598332,5.1954,1924.8,1924.2,2.68752184]
[1688209598628,12.98974,1924.6,1924.2,7.88431184]
[1688209599136,12.98974,1924.6,1924.1,7.19702]
[1688209599341,1.298974,1924.5,1924.1,7.19702]
[1688209599488,10.39294,1924.4,1924.1,7.19702]
[1688209599689,10.39294,1924.4,1924.1,12.39425]
[1688209600824,10.39294,1924.4,1924.1,2.0]
[1688209602494,5.19647,1924.4,1924.1,7.19715]
[1688209602823,6.5262624,1924.4,1924.1,7.19715]
[1688209603026,11.7226824,1924.4,1924.1,7.19715]
[1688209603230,14.3208924,1924.4,1923.9,2.0]
[1688209603394,16.49710842,1924.4,1923.9,4.68752184]
[1688209604027,16.49710842,1924.4,1923.9,9.88524184]
[1688209604223,1.64971084,1924.3,1923.9,9.88524184]
[1688209604516,10.39397,1924.2,1923.9,9.88524184]
[1688209604917,10.39397,1924.2,1923.9,7.19776]
[1688209605733,10.39397,1924.2,1923.9,2.0]
[1688209606435,12.99245,1924.2,1923.8,0.4143971]
[1688209606729,12.19028712,1924.2,1923.8,13.39602]
[1688209607038,14.78876712,1924.2,1923.8,13.39602]
[1688209608026,14.78876712,1924.2,1923.8,10.39602]
[1688209608231,14.78876712,1924.2,1923.4,7.19902]
[1688209608232,0.01651602,1924.1,1923.4,7.19902]
[1688209608392,10.3956,1923.9,1923.5,0.90329482]
[1688209608593,12.9945,1923.9,1923.4,4.68752184]
[1688209609102,12.9945,1923.9,1923.5,0.9033026]
[1688209609315,12.9945,1923.9,1923.4,4.68752184]
[1688209611296,12.9945,1923.9,1923.5,0.90331053]
[1688209611506,14.93734,1923.9,1923.5,0.90331053]
[1688209613438,14.93734,1923.9,1923.4,9.88662184]
[1688209613602,14.93734,1923.9,1923.4,15.08574184]
[1688209613916,14.93734,1923.9,1923.4,13.08574184]
[1688209614710,14.93734,1923.9,1923.4,15.68530184]
[1688209615410,14.93734,1923.9,1923.4,17.68530184]
[1688209615720,14.93734,1923.9,1923.4,15.08574184]
[1688209617121,12.9945,1923.9,1923.4,17.29769834]
[1688209617441,5.1978,1923.9,1923.6,10.39707]
[1688209617631,5.19778,1923.9,1923.6,13.08459184]
[1688209618142,10.39556,1923.9,1923.6,13.08459184]
[1688209618348,10.39556,1923.9,1923.6,14.81657202]
[1688209618650,12.99444,1923.9,1923.6,7.88605184]
[1688209622871,0.01651602,1924.1,1923.7,2.68752184]
[1688209623151,12.62486,1924.2,1923.8,10.39598]
[1688209623458,15.22334,1924.2,1923.8,13.08350184]
[1688209625164,15.22334,1924.2,1923.8,7.88551184]
[1688209627368,15.22334,1924.2,1923.8,14.94754802]
[1688209631351,15.22334,1924.2,1923.8,9.74950802]
[1688209631547,15.22334,1924.2,1923.8,2.68752184]
[1688209634884,5.19679,1924.3,1923.9,7.88518184]
[1688209635190,5.19702,1924.2,1923.9,13.08295184]
[1688209637989,5.19702,1924.2,1923.6,2.0]
[1688209637990,12.99252,1924.2,1923.6,2.0]
[1688209638190,0.519702,1924.1,1923.6,7.68752184]
[1688209638367,12.9941,1924.0,1923.6,7.68752184]
[1688209638567,12.9941,1924.0,1923.6,4.68752184]
[1688209639066,14.6589,1924.0,1923.6,9.88608184]
[1688209639393,14.6589,1924.0,1923.6,15.08466184]
[1688209640306,16.1767602,1924.0,1923.6,12.39714]
[1688209640510,16.1767602,1924.0,1923.6,2.0]
[1688209641006,16.1767602,1924.0,1923.6,5.19852]
[1688209642295,16.1766902,1924.0,1923.6,5.19852]
[1688209642799,13.5779402,1924.0,1923.6,5.19852]
[1688209642973,1.35779402,1923.9,1923.6,5.19852]
[1688209643171,1.35779402,1923.9,1923.6,12.3971]
[1688209643400,12.06016,1924.0,1923.6,12.3971]